bitfinex/quotes_BTCUSD_20260221
["timestamp","ask_amount","ask_price","bid_price","bid_amount"]
[1771659661714,0.0002,67929.0,67923.0,0.07361528]
[1771659661906,0.0002,67929.0,67924.0,0.07361126]
[1771659664311,0.0002,67929.0,67923.0,0.07361528]
[1771659664513,0.0002,67928.0,67923.0,0.07361528]
[1771659664687,0.07380769,67928.0,67922.0,0.07394884]
[1771659664909,0.1043143,67928.0,67922.0,0.07394884]
[1771659665302,0.1043143,67928.0,67923.0,0.07361271]
[1771659666331,0.03050661,67927.0,67923.0,0.07361271]
[1771659666870,0.10411534,67927.0,67922.0,0.07394884]
[1771659667962,0.03050661,67927.0,67922.0,0.07394884]
[1771659670663,0.03050661,67927.0,67922.0,0.0738031]
[1771659671780,0.03050661,67927.0,67922.0,0.07365738]
[1771659673681,0.07380769,67928.0,67922.0,0.07365738]
[1771659674383,0.07380769,67928.0,67922.0,0.07351164]
[1771659677004,0.07380769,67928.0,67922.0,0.07373164]
[1771659677946,0.0002,67928.0,67923.0,0.07361234]
[1771659678068,0.0002,67928.0,67924.0,0.07361126]
[1771659679806,0.0002,67928.0,67923.0,0.07361234]
[1771659680240,0.0002,67928.0,67923.0,0.07346659]
[1771659681581,0.0002,67928.0,67924.0,0.07361149]
[1771659682587,0.0002,67928.0,67923.0,0.07346659]
[1771659682722,0.0002,67928.0,67924.0,0.07361153]
[1771659684884,0.0002,67928.0,67924.0,0.07346581]
[1771659685061,0.03050661,67925.0,67920.0,0.07377551]
[1771659685231,0.03050661,67925.0,67920.0,0.00016]
[1771659685232,0.03059265,67925.0,67920.0,0.00016]
[1771659685431,0.03050661,67924.0,67920.0,0.00016]
[1771659686145,0.03050661,67924.0,67920.0,0.07377582]
[1771659688794,8.604e-05,67925.0,67920.0,0.07377582]
[1771659689480,0.03059265,67925.0,67920.0,0.07377582]
[1771659689682,0.03059265,67925.0,67921.0,0.07361488]
[1771659690083,8.604e-05,67925.0,67921.0,0.07361488]
[1771659690661,0.0002,67928.0,67920.0,0.00038]
[1771659690830,0.00025163,67928.0,67923.0,0.07361189]
[1771659693944,0.03075824,67928.0,67923.0,0.07361189]
[1771659696685,0.03075824,67928.0,67923.0,0.07383189]
[1771659697285,0.10436559,67928.0,67923.0,0.07383189]
[1771659700718,0.03075824,67928.0,67923.0,0.07383189]
[1771659703185,0.10436559,67928.0,67923.0,0.07383189]
[1771659707008,0.07360851,67927.0,67923.0,0.00022]
[1771659707605,0.03050661,67926.0,67923.0,0.00022]
[1771659710474,0.07385898,67928.0,67923.0,0.00022]
[1771659711509,0.10436559,67928.0,67923.0,0.00022]
[1771659714511,0.10411554,67927.0,67923.0,0.00022]
[1771659714714,0.07360893,67927.0,67923.0,0.00022]
[1771659714878,0.03050661,67926.0,67923.0,0.00022]
[1771659717593,0.10436559,67928.0,67923.0,0.00022]
[1771659718948,0.07360891,67927.0,67921.0,0.07361316]
[1771659719154,0.10411552,67927.0,67921.0,0.07361316]
[1771659719457,0.03050661,67926.0,67922.0,0.07361374]
[1771659719628,0.03050661,67926.0,67921.0,0.07361316]
[1771659722439,0.03050661,67926.0,67921.0,0.07383316]
[1771659729234,0.07386062,67928.0,67923.0,0.07361248]
[1771659729436,0.07360613,67930.0,67923.0,0.07361248]
[1771659729593,0.07360661,67929.0,67923.0,0.07361248]
[1771659732028,0.07360661,67929.0,67923.0,0.05895077]
[1771659735051,0.07360661,67929.0,67923.0,0.05917077]
[1771659735247,0.07380661,67929.0,67923.0,0.05917077]
[1771659736060,0.0233283,67928.0,67923.0,0.05917077]
[1771659740664,0.09693566,67928.0,67923.0,0.05917077]
[1771659740987,0.07360736,67928.0,67923.0,0.05917077]
[1771659741196,0.07380661,67929.0,67923.0,0.05917077]
[1771659741197,0.0233283,67927.0,67923.0,0.05917077]
[1771659743960,0.0002,67928.0,67923.0,0.05917077]
[1771659756351,0.0002,67928.0,67923.0,0.00022]
[1771659756509,0.0002,67928.0,67923.0,0.07383217]
[1771659757862,0.07380737,67928.0,67923.0,0.07383217]
[1771659758012,0.0002,67928.0,67923.0,0.00022]
[1771659758968,0.0002,67928.0,67923.0,0.07383222]
[1771659767438,0.0002,67928.0,67923.0,0.07310456]
[1771659767634,0.0002,67928.0,67923.0,0.07295904]
[1771659773449,0.0002,67928.0,67923.0,0.07317904]
[1771659774495,0.0970801,67928.0,67923.0,0.00022]
[1771659775698,0.07380765,67928.0,67923.0,0.00022]
[1771659779724,0.07360865,67927.0,67923.0,0.00022]
[1771659780757,0.07360952,67926.0,67923.0,0.00022]
[1771659781032,0.07361074,67925.0,67921.0,0.00022]
[1771659782006,0.07361217,67924.0,67921.0,0.00022]
[1771659783299,0.01847039,67925.0,67914.0,0.00022]
[1771659783501,0.02373169,67916.0,67911.0,0.07384547]
[1771659783707,0.09735247,67916.0,67911.0,0.00022]
[1771659783889,0.02373169,67916.0,67911.0,0.07384559]
[1771659784094,0.09735206,67916.0,67911.0,0.07384559]
[1771659784387,0.02373169,67915.0,67911.0,0.07384559]
[1771659786313,0.02373169,67915.0,67913.0,0.0736226]
[1771659786512,0.02373169,67919.0,67914.0,0.07362252]
[1771659787948,0.54408109,67955.0,67911.0,0.00022]
[1771659788149,0.0736134,67923.0,67916.0,0.0736197]
[1771659788353,0.07361418,67922.0,67916.0,0.0736197]
[1771659789301,0.0736162,67920.0,67914.0,0.07362082]
[1771659789684,0.07361496,67921.0,67915.0,0.07362082]
[1771659789891,0.07361553,67922.0,67916.0,0.07362006]
[1771659790404,0.07361553,67922.0,67911.0,0.00022]
[1771659790405,0.29445973,67922.0,67911.0,0.00022]
[1771659790556,0.16665244,67926.0,67911.0,0.00022]
[1771659790557,0.0736239,67913.0,67911.0,0.00022]
[1771659790756,0.07362325,67915.0,67911.0,0.00022]
[1771659790958,0.07362325,67914.0,67911.0,0.00022]
[1771659791382,0.07362386,67913.0,67911.0,0.00022]
[1771659792394,0.07361977,67917.0,67911.0,0.07384525]
[1771659792730,0.07360843,67927.0,67913.0,0.02]
[1771659792884,0.02361685,67920.0,67914.0,0.09704671]
[1771659793246,0.07361414,67922.0,67915.0,0.07362086]
[1771659793407,0.07361526,67921.0,67915.0,0.0736211]
[1771659793584,0.07361656,67920.0,67914.0,0.09704653]
[1771659794483,0.07361713,67919.0,67913.0,0.07362186]
[1771659794838,0.07361713,67919.0,67912.0,0.07362306]
[1771659794990,0.0736185,67918.0,67912.0,0.07362306]
[1771659795190,0.0736185,67918.0,67913.0,0.07362345]
[1771659795720,0.07361713,67919.0,67913.0,0.07362345]
[1771659799089,0.07361826,67918.0,67913.0,0.07362345]
[1771659800309,0.07361826,67918.0,67912.0,0.07362306]
[1771659801263,0.07361826,67918.0,67912.0,0.07367469]
[1771659803002,0.07361933,67917.0,67912.0,0.07367469]
[1771659803214,0.07361826,67918.0,67912.0,5.163e-05]
[1771659803632,0.07361826,67918.0,67912.0,0.07367577]
[1771659803904,0.02318593,67918.0,67910.0,0.00038]
[1771659804133,0.07362758,67910.0,67906.0,0.00022]
[1771659804359,0.0736297,67908.0,67903.0,0.00022]
[1771659804874,0.07363479,67903.0,67900.0,0.00038]
[1771659805027,0.07363336,67904.0,67900.0,0.00038]
[1771659805222,0.02318593,67909.0,67900.0,0.00038]
[1771659805223,0.07363596,67902.0,67900.0,0.00038]
[1771659805823,0.07363596,67902.0,67897.0,0.00022]
[1771659806077,0.07363938,67899.0,67897.0,0.00022]
[1771659806218,0.07363938,67900.0,67897.0,0.00022]
[1771659807019,0.07363938,67900.0,67898.0,0.00022]
[1771659810747,0.07363713,67901.0,67898.0,0.00022]
[1771659810920,0.07363586,67902.0,67898.0,0.00022]
[1771659812326,0.07363665,67901.0,67898.0,0.00022]
[1771659812907,0.07363586,67902.0,67898.0,0.00022]
[1771659815007,0.07363683,67901.0,67898.0,0.00022]
[1771659816595,0.07363586,67902.0,67898.0,0.00022]
[1771659823170,0.07363673,67901.0,67898.0,0.00022]
[1771659823954,0.07363586,67902.0,67898.0,0.00022]
[1771659824274,0.07363586,67902.0,67898.0,0.00030604]
[1771659825634,0.07363675,67901.0,67898.0,0.00030604]
[1771659827347,0.07363675,67901.0,67898.0,0.00016046]
[1771659828176,0.07363878,67899.0,67898.0,0.00016046]
[1771659828578,0.07363823,67900.0,67898.0,0.00016046]
[1771659829945,0.07363843,67901.0,67898.0,0.00016046]
[1771659833727,0.07363799,67900.0,67898.0,0.00016046]
[1771659834874,0.07363843,67901.0,67898.0,0.00016046]
[1771659841645,0.07383714,67902.0,67898.0,0.00016046]
[1771659841850,0.06825516,67901.0,67898.0,0.00016046]
[1771659842042,0.07383714,67902.0,67898.0,0.00016046]
[1771659847221,0.07363676,67901.0,67898.0,0.00016046]
[1771659848687,0.07383714,67902.0,67898.0,0.00016046]
[1771659856075,0.07383714,67902.0,67896.0,0.07372229]
[1771659858167,0.07383714,67902.0,67896.0,0.07394229]
[1771659870288,0.0002,67902.0,67897.0,0.07364084]
[1771659870684,0.07383568,67902.0,67897.0,0.07364084]
[1771659870856,0.07383576,67902.0,67897.0,0.07364084]
[1771659872811,0.07383576,67902.0,67896.0,0.07394064]
[1771659876738,0.07362902,67909.0,67900.0,0.07363698]
[1771659876885,0.06876019,67906.0,67900.0,0.09744686]
[1771659877334,0.07363284,67905.0,67900.0,0.02380988]
[1771659877743,0.0002,67902.0,67901.0,0.02468033]
[1771659878828,0.0002,67902.0,67900.0,0.07363754]
[1771659879930,0.0002,67902.0,67899.0,0.07363843]
[1771659885934,0.0002,67902.0,67899.0,0.04584998]
[1771659890855,0.0002,67902.0,67898.0,0.07363816]
[1771659891068,0.0002,67902.0,67898.0,0.07363953]
[1771659891270,0.0202,67902.0,67898.0,0.07363953]
[1771659893686,0.0002,67902.0,67898.0,0.07363953]
[1771659897461,0.0002,67902.0,67898.0,0.07385953]
[1771659902808,0.0002,67906.0,67903.0,0.07363428]
[1771659903015,0.07362623,67911.0,67904.0,0.0736327]
[1771659903225,0.02,67913.0,67904.0,0.0736327]
[1771659903226,0.07378731,67910.0,67904.0,0.0736327]
[1771659903422,0.07362796,67909.0,67904.0,0.0736327]
[1771659903732,0.07362796,67909.0,67903.0,0.07363259]
[1771659904150,0.07362796,67909.0,67903.0,0.04213259]
[1771659904352,0.07378731,67910.0,67904.0,0.07363329]
[1771659904553,0.07362822,67909.0,67903.0,0.04213259]
[1771659906378,0.07362822,67909.0,67902.0,0.07363362]
[1771659906540,0.07362923,67908.0,67901.0,0.07363481]
[1771659906740,0.07362923,67908.0,67902.0,0.07363492]
[1771659910654,0.07362923,67908.0,67902.0,0.07385492]
[1771659911149,0.09382822,67909.0,67902.0,0.07385492]
[1771659911433,0.09382822,67909.0,67903.0,0.07363359]
[1771659912652,0.02,67908.0,67904.0,0.07363336]
[1771659915117,0.02,67908.0,67903.0,0.07363359]
[1771659917901,0.02,67908.0,67903.0,0.07385359]
[1771659918397,0.02,67908.0,67903.0,0.00022]
[1771659918973,0.02,67908.0,67903.0,0.07385409]
[1771659919176,0.0002,67909.0,67904.0,0.07363293]
[1771659919573,0.09382799,67909.0,67904.0,0.07363293]
[1771659919825,0.02,67908.0,67904.0,0.07363293]
[1771659924679,0.0202,67908.0,67904.0,0.07363293]
[1771659926430,0.0202,67908.0,67903.0,0.06841058]
[1771659927434,0.0202,67908.0,67904.0,0.07363312]
[1771659927635,0.02001094,67908.0,67904.0,0.07363312]
[1771659929170,0.02001094,67908.0,67903.0,0.06841058]
[1771659930322,0.02001094,67908.0,67904.0,0.07363308]
[1771659932353,0.0002,67919.0,67904.0,0.02408582]
[1771659932499,0.0002,67919.0,67914.0,0.07362222]
[1771659932825,0.07377971,67920.0,67914.0,0.07362222]
[1771659937169,0.07345932,67920.0,67914.0,0.07362222]
[1771659938893,0.07361939,67917.0,67911.0,0.07362392]
[1771659939822,0.01969988,67921.0,67910.0,0.22158596]
[1771659940115,0.07362642,67912.0,67905.0,0.07363179]
[1771659940290,0.07346621,67912.0,67906.0,0.0736307]
[1771659940873,0.07362542,67913.0,67907.0,0.07362959]
[1771659942159,0.07362542,67913.0,67906.0,0.0736307]
[1771659942160,0.07362509,67912.0,67906.0,0.0736307]
[1771659942761,0.07346491,67912.0,67906.0,0.0736307]
[1771659943110,0.07346491,67912.0,67907.0,0.07363003]
[1771659943742,0.07366491,67912.0,67907.0,0.07363003]
[1771659944600,0.0002,67912.0,67907.0,0.07363003]
[1771659945814,3.981e-05,67912.0,67907.0,0.07363003]
[1771659949161,3.981e-05,67912.0,67908.0,0.07362872]
[1771659949706,3.981e-05,67912.0,67909.0,0.07362765]
[1771659951615,0.07350122,67915.0,67909.0,0.07362765]
[1771659951860,0.07334097,67915.0,67909.0,0.07362765]
[1771659953748,0.07318071,67915.0,67909.0,0.07362765]
[1771659956860,0.07302048,67915.0,67909.0,0.07362765]
[1771659957924,0.07302048,67915.0,67909.0,0.07384765]
[1771659959397,0.07362273,67914.0,67909.0,0.07384765]
[1771659959613,0.07302048,67915.0,67909.0,0.00022]
[1771659959765,0.07286025,67915.0,67909.0,0.07384751]
[1771659959967,0.07269999,67915.0,67909.0,0.07384751]
[1771659962409,0.07362262,67914.0,67909.0,0.07384751]
[1771659963230,0.07346237,67914.0,67909.0,0.07384751]
[1771659963436,0.07269999,67915.0,67909.0,0.07384751]
[1771659963729,0.07253976,67915.0,67909.0,0.07384751]
[1771659963889,0.073623,67914.0,67909.0,0.00022]
[1771659965837,0.07346275,67914.0,67909.0,0.00022]
[1771659965981,0.07330247,67914.0,67909.0,0.00022]
[1771659966830,0.07298188,67914.0,67909.0,0.00022]
[1771659967986,0.07298188,67914.0,67909.0,0.07384787]
[1771659968190,0.07282154,67914.0,67909.0,0.07384787]
[1771659968393,0.07266119,67914.0,67909.0,0.00022]
[1771659968692,0.07250084,67914.0,67909.0,0.07384793]
[1771659968897,0.07234049,67914.0,67909.0,0.07384793]
[1771659969493,0.0002,67915.0,67909.0,0.07384793]
[1771659969689,0.0002,67915.0,67910.0,0.07362606]
[1771659970859,3.961e-05,67915.0,67910.0,0.07362606]
[1771659971688,0.07366119,67915.0,67909.0,0.07384793]
[1771659972070,0.07366119,67915.0,67910.0,0.07362681]
[1771659972896,0.07350086,67915.0,67910.0,0.07362681]
[1771659973991,0.02436917,67919.0,67909.0,0.00022]
[1771659974311,0.22104714,67919.0,67913.0,0.07362314]
[1771659974516,0.0736174,67919.0,67913.0,0.07362314]
[1771659975334,0.22103462,67919.0,67913.0,0.07362314]
[1771659976312,0.22103462,67919.0,67913.0,0.05601921]
[1771659977814,0.22123462,67919.0,67913.0,0.05601921]
[1771659978015,0.07361821,67918.0,67913.0,0.05601921]
[1771659978422,0.07361821,67918.0,67913.0,0.03841528]
[1771659978863,0.0738174,67919.0,67913.0,0.03841528]
[1771659979266,0.0736182,67918.0,67913.0,0.03841528]
[1771659979472,0.0738174,67919.0,67913.0,0.03841528]
[1771659979998,0.22121424,67919.0,67913.0,0.03841528]
[1771659980684,0.07361824,67918.0,67913.0,0.02081135]
[1771659980838,0.0738174,67919.0,67913.0,0.02081135]
[1771659981243,0.07361825,67918.0,67913.0,0.02081135]
[1771659983000,0.07361825,67918.0,67913.0,0.07362324]
[1771659983207,0.07361825,67918.0,67913.0,0.07362331]
[1771659983962,0.0738174,67919.0,67913.0,0.07362331]
[1771659984162,0.07361839,67918.0,67913.0,0.07362331]
[1771659984598,0.07361839,67918.0,67912.0,0.07362276]
[1771659984599,0.07361961,67917.0,67909.0,0.00022]
[1771659984796,0.07361961,67917.0,67911.0,0.07362524]
[1771659985746,0.07361994,67918.0,67912.0,0.07362459]
[1771659985977,0.07361951,67917.0,67912.0,0.07362459]
[1771659988212,0.07361951,67917.0,67911.0,0.07362524]
[1771659991579,0.07361951,67917.0,67912.0,0.00022]
[1771659991738,0.07361951,67917.0,67911.0,0.07362524]
[1771659992310,0.07361951,67917.0,67912.0,0.0551014]
[1771659993386,0.07361951,67917.0,67911.0,0.07362524]
[1771659998982,0.07361951,67917.0,67911.0,0.07384524]
[1771660006033,0.07362037,67916.0,67911.0,0.07384524]
[1771660006355,0.07361951,67917.0,67911.0,0.07384524]
[1771660006575,0.07381951,67917.0,67911.0,0.07384524]
[1771660011250,0.07362036,67916.0,67911.0,0.07384524]
[1771660011450,0.07381951,67917.0,67911.0,0.07384524]
[1771660012219,0.07362038,67916.0,67911.0,0.07384524]
[1771660020108,0.02454293,67915.0,67911.0,0.00022]
[1771660023880,0.07362038,67916.0,67911.0,0.00022]
[1771660026265,0.0002,67917.0,67912.0,0.07362465]
[1771660029402,0.0002,67917.0,67911.0,0.07384475]
[1771660029711,0.07362204,67915.0,67911.0,0.00022]
[1771660031254,0.07362035,67916.0,67911.0,0.00022]
[1771660034446,0.02122291,67916.0,67911.0,0.07384576]
[1771660034810,0.02122291,67916.0,67911.0,0.00022]
[1771660035583,0.04432665,67916.0,67911.0,0.00022]
[1771660036341,0.07382104,67917.0,67911.0,0.07384522]
[1771660037866,0.07362053,67916.0,67911.0,0.00022]
[1771660038559,0.07382104,67917.0,67911.0,0.07384561]
[1771660039105,0.07362037,67916.0,67911.0,0.00022]
[1771660040051,0.07362172,67915.0,67911.0,0.00022]
[1771660051528,0.09672546,67915.0,67911.0,0.00022]
[1771660051933,0.07362172,67915.0,67911.0,0.00022]
[1771660057838,0.07382037,67916.0,67907.0,0.00022]
[1771660057839,0.02335714,67913.0,67907.0,0.00022]
[1771660058112,0.09698222,67912.0,67907.0,0.00022]
[1771660058517,0.07362508,67912.0,67911.0,0.00022]
[1771660059330,0.07362537,67913.0,67911.0,0.00022]
[1771660059741,0.0002,67916.0,67911.0,0.00022]
[1771660060118,0.07382088,67916.0,67911.0,0.00022]
[1771660060320,0.0002,67916.0,67911.0,0.07384569]
[1771660069190,0.07382058,67916.0,67911.0,0.00022]
[1771660070476,0.07382058,67916.0,67911.0,0.07384565]
[1771660073578,0.07382058,67916.0,67911.0,0.00022]
[1771660075820,0.07362146,67915.0,67911.0,0.00022]
[1771660076357,0.07362256,67914.0,67909.0,0.00022]
[1771660078076,0.07362256,67914.0,67911.0,0.00022]
[1771660081393,0.07362418,67913.0,67911.0,0.00022]
[1771660081564,0.07362256,67914.0,67911.0,0.00022]
[1771660082075,0.07362404,67913.0,67911.0,0.00022]
[1771660082593,0.07362404,67913.0,67909.0,0.00022]
[1771660083158,0.01970665,67914.0,67903.0,0.00022]
[1771660083321,0.0002,67916.0,67900.0,0.14818]
[1771660083322,0.09698874,67906.0,67900.0,0.06269054]
[1771660084784,0.09698874,67906.0,67904.0,0.00022]
[1771660086443,0.0736316,67906.0,67904.0,0.00022]
[1771660087976,0.07362947,67908.0,67904.0,0.00022]
[1771660088266,0.07362941,67908.0,67904.0,0.00022]
[1771660088645,0.07362852,67909.0,67904.0,0.00022]
[1771660089199,0.0002,67916.0,67904.0,0.02272603]
[1771660089412,0.0736241,67913.0,67906.0,0.07363083]
[1771660089615,0.0736241,67913.0,67907.0,0.07362953]
[1771660094913,0.07362504,67912.0,67906.0,0.07385083]
[1771660099308,0.07382504,67912.0,67906.0,0.07385083]
[1771660105336,0.07362618,67911.0,67906.0,0.00022]
[1771660105636,0.07382504,67912.0,67906.0,0.07385065]
[1771660110071,0.07362582,67911.0,67906.0,0.07385065]
[1771660110430,0.07362582,67911.0,67906.0,0.00022]
[1771660110656,0.07362582,67911.0,67906.0,0.07385112]
[1771660110966,0.07362582,67911.0,67906.0,0.00022]
[1771660111524,0.07362582,67911.0,67906.0,0.07385102]
[1771660113164,0.00033781,67910.0,67906.0,0.07385102]
[1771660127398,0.0002,67916.0,67911.0,0.07362577]
[1771660127543,0.07382042,67916.0,67910.0,0.07362595]
[1771660127749,0.07362164,67915.0,67910.0,0.07362595]
[1771660127953,0.0002,67916.0,67907.0,0.02307766]
[1771660128153,0.0002,67916.0,67911.0,0.07362477]
[1771660128849,0.07362171,67915.0,67909.0,0.0736263]
[1771660131352,0.07362171,67915.0,67910.0,0.07362684]
[1771660131545,0.07362171,67915.0,67909.0,0.0736263]
[1771660132250,0.07362259,67914.0,67908.0,0.07362861]
[1771660132389,0.07362259,67914.0,67909.0,0.07362788]
[1771660132594,0.07362171,67915.0,67908.0,0.07362861]
[1771660133484,0.07362284,67914.0,67908.0,0.07362861]
[1771660133879,0.07362284,67914.0,67909.0,0.07362771]
[1771660134088,0.07362171,67915.0,67909.0,0.07362771]
[1771660137739,0.07362171,67915.0,67909.0,0.07384771]
[1771660138080,0.07382171,67915.0,67909.0,0.07384771]
[1771660140678,0.07362258,67914.0,67909.0,0.00022]
[1771660140880,0.0736239,67913.0,67909.0,0.00022]
[1771660141083,0.07362468,67914.0,67909.0,0.00022]
[1771660146842,0.07362252,67914.0,67906.0,0.00022]
[1771660147192,0.07362977,67908.0,67902.0,0.07385544]
[1771660147474,0.09629815,67908.0,67902.0,0.00022]
[1771660148019,0.09629815,67908.0,67902.0,0.07385536]
[1771660148449,0.09629815,67908.0,67903.0,0.07363429]
[1771660148746,0.07362977,67908.0,67902.0,0.07385536]
[1771660150312,0.07362977,67908.0,67903.0,0.07363442]
[1771660152273,0.07362967,67909.0,67903.0,0.07363442]
[1771660153569,0.07362856,67910.0,67904.0,0.07363327]
[1771660153749,0.07167626,67910.0,67904.0,0.07363327]
[1771660153953,0.07362582,67911.0,67905.0,0.07363217]
[1771660154727,0.07362703,67910.0,67905.0,0.07363217]
[1771660158996,0.07362582,67911.0,67905.0,0.07363217]
[1771660160220,0.00066814,67910.0,67905.0,0.07363217]
[1771660161050,0.074295,67910.0,67905.0,0.07363217]
[1771660161287,0.074295,67910.0,67904.0,0.00022]
[1771660161627,0.00066814,67910.0,67904.0,0.07385283]
[1771660162182,0.00066814,67910.0,67905.0,0.07363182]
[1771660164806,0.00066814,67910.0,67905.0,0.07385182]
[1771660165213,0.00086814,67910.0,67905.0,0.07385182]
[1771660168654,0.07449499,67910.0,67905.0,0.07385182]
[1771660169555,0.09820065,67910.0,67904.0,0.00022]
[1771660169714,0.09820065,67910.0,67904.0,0.0738533]
[1771660170303,0.0736282,67909.0,67904.0,0.0738533]
[1771660170676,0.09820065,67910.0,67904.0,0.0738533]
[1771660170892,0.07362806,67909.0,67904.0,0.00022]
[1771660171070,0.09733372,67909.0,67904.0,0.00022]
[1771660171296,0.02370566,67909.0,67904.0,0.07385288]
[1771660171873,0.02370566,67909.0,67905.0,0.00022]
[1771660173515,0.07382685,67910.0,67905.0,0.00022]
[1771660173751,0.00066814,67908.0,67905.0,0.00022]
[1771660186042,0.00066814,67908.0,67905.0,0.07385225]
[1771660188078,0.07362999,67908.0,67904.0,0.00022]
[1771660188283,0.07362999,67908.0,67902.0,0.07385507]
[1771660190089,0.00066814,67907.0,67902.0,0.07385507]
[1771660190708,0.00066814,67907.0,67905.0,0.00022]
[1771660192531,0.0233755,67907.0,67902.0,0.07385507]
[1771660192937,0.00066814,67907.0,67902.0,0.07385507]
[1771660194186,0.0002,67910.0,67902.0,0.00022]
[1771660194405,0.0002,67910.0,67905.0,0.07363133]
[1771660197337,0.0002,67910.0,67905.0,0.07385133]
[1771660200498,0.0002,67910.0,67906.0,0.07363106]
[1771660200702,0.0002,67910.0,67905.0,0.07385133]
[1771660201820,0.0002,67910.0,67907.0,0.07363]
[1771660201963,0.0002,67910.0,67906.0,0.0736295]
[1771660202151,0.0002,67910.0,67905.0,0.07385035]
[1771660210179,0.0002,67914.0,67905.0,0.00022]
[1771660210398,0.0002,67917.0,67910.0,0.07362679]
[1771660210399,0.07382066,67916.0,67910.0,0.07362679]
[1771660210619,0.07361938,67917.0,67911.0,0.07362479]
[1771660213584,0.0736206,67916.0,67910.0,0.09810804]
[1771660217107,0.0738206,67916.0,67910.0,0.09810804]
[1771660220493,0.07362148,67915.0,67910.0,0.09810804]
[1771660223057,0.07362148,67915.0,67910.0,0.02448321]
[1771660223436,0.07382148,67915.0,67910.0,0.02448321]
[1771660223633,0.07382148,67915.0,67909.0,0.07362607]
[1771660223834,0.07382148,67915.0,67908.0,0.0736272]
[1771660224157,0.07382148,67915.0,67909.0,0.07362762]
[1771660229853,0.07382148,67915.0,67909.0,0.07384762]
[1771660230785,0.07362255,67914.0,67909.0,0.07384762]
[1771660231958,0.02362255,67914.0,67909.0,0.07384762]
[1771660232155,0.07382148,67915.0,67910.0,0.02448321]
[1771660234010,0.07362288,67914.0,67910.0,0.02448321]
[1771660236281,0.07362288,67914.0,67910.0,0.02470321]
[1771660237665,0.07362288,67914.0,67910.0,0.00022]
[1771660238137,0.09362288,67914.0,67910.0,0.00022]
[1771660238923,0.07362288,67914.0,67910.0,0.00022]
[1771660242769,0.07382288,67914.0,67910.0,0.00022]
[1771660243519,0.07366185,67914.0,67910.0,0.00022]
[1771660243738,0.09350082,67914.0,67910.0,0.00022]
[1771660245555,0.07350082,67914.0,67910.0,0.00022]
[1771660246240,0.07333978,67914.0,67910.0,0.00022]
[1771660246641,0.07317872,67914.0,67910.0,0.00022]
[1771660249002,0.0730177,67914.0,67910.0,0.00022]
[1771660252897,0.02,67913.0,67906.0,0.07363102]
[1771660253147,0.07362553,67912.0,67906.0,0.07363102]
[1771660253315,0.07362579,67911.0,67905.0,0.0738505]
[1771660253909,0.07362553,67912.0,67906.0,0.07363093]
[1771660255433,0.07362553,67912.0,67910.0,0.00022]
[1771660255605,0.02,67911.0,67910.0,0.00022]
[1771660257705,0.09362577,67911.0,67906.0,0.07363093]
[1771660257912,0.02,67911.0,67906.0,0.07363093]
[1771660259377,0.07362553,67912.0,67906.0,0.07363093]
[1771660261533,0.07382286,67914.0,67905.0,0.00022]
[1771660261736,0.0002,67914.0,67911.0,0.02420436]
[1771660264042,0.0002,67916.0,67911.0,0.02420436]
[1771660264391,0.0002,67916.0,67912.0,0.02420436]
[1771660264630,0.07382069,67916.0,67912.0,0.02420436]
[1771660264839,0.0002,67916.0,67912.0,0.02420436]
[1771660265019,0.07382098,67916.0,67912.0,0.02420436]
[1771660265416,0.07382098,67916.0,67910.0,0.07362635]
[1771660266962,0.0736217,67915.0,67909.0,0.07362623]
[1771660268230,0.07382098,67916.0,67910.0,0.0736264]
[1771660268616,0.07382098,67916.0,67910.0,0.0738464]
[1771660268866,0.0002,67914.0,67910.0,0.0738464]
[1771660271964,0.0002,67914.0,67911.0,0.07362477]
[1771660272355,0.0002,67914.0,67912.0,0.07362452]
[1771660274431,0.0002,67914.0,67913.0,0.0736236]
[1771660275616,0.0002,67914.0,67912.0,0.07362452]
[1771660282008,0.0002,67914.0,67913.0,0.0736236]
[1771660282281,0.0002,67914.0,67912.0,0.07362452]
[1771660282589,0.0002,67914.0,67913.0,0.0736236]
[1771660283546,0.0001236,67925.0,67924.0,0.07361168]
[1771660283755,0.0001236,67925.0,67924.0,0.05991248]
[1771660287315,0.0001236,67925.0,67924.0,0.06091248]
[1771660287518,0.0003236,67925.0,67924.0,0.06091248]
[1771660287847,0.0003236,67925.0,67924.0,0.05991248]
[1771660288054,0.0003236,67925.0,67924.0,0.06091248]
[1771660288212,0.0003236,67925.0,67924.0,0.05991248]
[1771660291855,0.00016254,67925.0,67924.0,0.05991248]
[1771660292789,0.00016254,67925.0,67924.0,0.08431644]
[1771660293084,0.00016254,67925.0,67924.0,0.08531644]
[1771660293288,0.00016254,67925.0,67924.0,0.06091248]
[1771660294361,1.49e-06,67925.0,67924.0,0.06091248]
[1771660298318,1.49e-06,67925.0,67919.0,0.29446489]
[1771660298478,0.02308781,67925.0,67921.0,0.07361421]
[1771660298675,0.02308781,67925.0,67922.0,0.07361326]
[1771660298877,0.0736082,67928.0,67922.0,0.07361326]
[1771660299328,0.07344717,67928.0,67922.0,0.07361326]
[1771660300917,0.0002,67925.0,67922.0,0.07361326]
[1771660301127,0.00016,67930.0,67916.0,0.44171737]
[1771660301271,0.00016,67930.0,67922.0,0.09357276]
[1771660301478,0.00016,67930.0,67925.0,0.07360985]
[1771660302474,0.07376522,67930.0,67922.0,0.01996]
[1771660302680,0.07360681,67929.0,67920.0,0.29446214]
[1771660302902,0.07360763,67928.0,67922.0,0.07361332]
[1771660303502,0.07360681,67929.0,67923.0,0.07361232]
[1771660306249,0.07360681,67929.0,67924.0,0.07361167]
[1771660306449,0.07360681,67929.0,67923.0,0.07361232]
[1771660307162,0.02308632,67927.0,67922.0,0.0736134]
[1771660307519,0.02308632,67927.0,67923.0,0.07383248]
[1771660307719,0.07360763,67928.0,67923.0,0.07383248]
[1771660308134,0.07344662,67928.0,67923.0,0.07383248]
[1771660308341,0.07380681,67929.0,67923.0,0.07383248]
[1771660312988,0.07360749,67928.0,67923.0,0.00022]
[1771660313557,0.07360749,67928.0,67923.0,0.07383265]
[1771660315198,0.07380681,67929.0,67923.0,0.07383265]
[1771660321180,0.07360748,67928.0,67923.0,0.07383265]
[1771660321564,0.07360748,67928.0,67923.0,0.00022]
[1771660321945,0.07360748,67928.0,67923.0,0.07383263]
[1771660322900,0.07360748,67928.0,67923.0,0.00022]
[1771660323100,0.07360748,67928.0,67916.0,0.00022]
[1771660323101,0.02308632,67928.0,67916.0,0.00022]
[1771660323250,0.07361368,67923.0,67916.0,0.07383983]
[1771660323452,0.02308632,67922.0,67917.0,0.07361921]
[1771660323829,0.02308632,67922.0,67917.0,0.07361888]
[1771660324025,0.07361368,67923.0,67916.0,0.07383983]
[1771660324227,0.02308632,67921.0,67916.0,0.00022]
[1771660324465,0.02308632,67921.0,67917.0,0.073619]